fUSD/lending_fUSD_20240426
["ID","MTS","AMOUNT","RATE_DAILY","PERIOD"]
[323645627,1714146730400,-500.0,0.00014558,2]
[323645628,1714146730410,-500.0,0.00014558,2]
[323645629,1714146730419,-500.0,0.00014558,2]
[323645630,1714146730428,-703.76,0.00014558,2]
[323645631,1714146730438,-723.08,0.00014558,2]
[323645632,1714146730447,-571.51,0.00014558,2]
[323645633,1714146730457,-500.0,0.00014558,2]
[323645634,1714146730466,-1700.69,0.00014558,2]
[323645635,1714146730475,-500.0,0.00014558,2]
[323645636,1714146730489,-597.04,0.00014558,2]
[323645637,1714146730500,-500.0,0.00014558,2]
[323645638,1714146730509,-500.0,0.00014558,2]
[323645639,1714146730518,-980.11,0.00014558,2]
[323645640,1714146730529,-654.78,0.00014558,2]
[323645641,1714146730538,-665.45,0.00014558,2]
[323645642,1714146730548,-214.93478006,0.00014558,2]
[323645643,1714146730556,-500.0,0.00014558,2]
[323645644,1714146730566,-500.0,0.00014558,2]
[323645645,1714146730576,-500.0,0.00014558,2]
[323645646,1714146730586,-322.49,0.00014558,2]
[323645647,1714146730596,-500.0,0.00014558,2]
[323645648,1714146730605,-507.24,0.00014558,2]
[323645649,1714146730614,-500.0,0.00014558,2]
[323645650,1714146730624,-500.0,0.00014558,2]
[323645651,1714146730633,-500.0,0.00014558,2]
[323645652,1714146730643,-500.0,0.00014558,2]
[323645653,1714146730652,-817.8,0.00014558,2]
[323645654,1714146730662,-500.0,0.00014558,2]
[323645655,1714146730671,-500.0,0.00014558,2]
[323645656,1714146730680,-530.95,0.00014558,2]
[323645657,1714146730689,-521.34707621,0.00014558,2]
[323645658,1714146730698,-500.0,0.00014558,2]
[323645659,1714146730707,-500.0,0.00014558,2]
[323645660,1714146730717,-277.29,0.00014558,2]
[323645661,1714146730726,-500.0,0.00014558,2]
[323645662,1714146730735,-542.25,0.00014558,2]
[323645663,1714146730744,-597.96,0.00014558,2]
[323645664,1714146730755,-1358.88,0.00014558,2]
[323645665,1714146730765,-619.11,0.00014558,2]
[323645666,1714146730776,-1059.13,0.00014558,2]
[323645667,1714146730785,-500.0,0.00014558,2]
[323645668,1714146730794,-621.09,0.00014558,2]
[323645669,1714146730804,-781.34,0.00014558,2]
[323645670,1714146730813,-500.0,0.00014558,2]
[323645671,1714146730822,-603.94,0.00014558,2]
[323645672,1714146730831,-500.0,0.00014558,2]
[323645673,1714146730841,-2203.32,0.00014558,2]
[323645674,1714146730850,-741.55,0.00014558,2]
[323645675,1714146730860,-500.0,0.00014558,2]
[323645676,1714146730869,-707.05,0.00014558,2]
[323645677,1714146730877,-361.87,0.00014558,2]
[323645678,1714146730887,-500.0,0.00014558,2]
[323645679,1714146730896,-1197.27,0.00014558,2]
[323645680,1714146730905,-525.11,0.00014558,2]
[323645681,1714146730915,-1151.01,0.00014558,2]
[323645682,1714146730925,-1089.37,0.00014558,2]
[323645683,1714146730934,-500.0,0.00014558,2]
[323645684,1714146730944,-500.0,0.00014558,2]
[323645685,1714146730954,-535.73,0.00014558,2]
[323645686,1714146730964,-1314.57,0.00014558,2]
[323645687,1714146730973,-500.0,0.00014558,2]
[323645688,1714146730982,-500.0,0.00014558,2]
[323645689,1714146730992,-1247.81,0.00014558,2]
[323645690,1714146731003,-731.33,0.00014558,2]
[323645691,1714146731012,-609.72,0.00014558,2]
[323645692,1714146731022,-713.5,0.00014558,2]
[323645693,1714146731031,-577.85,0.00014558,2]
[323645694,1714146731041,-357.97,0.00014558,2]
[323645695,1714146731050,-500.0,0.00014558,2]
[323645696,1714146731059,-1867.18,0.00014558,2]
[323645697,1714146731070,-500.0,0.00014558,2]
[323645698,1714146731080,-1355.9,0.00014558,2]
[323645699,1714146731090,-638.8,0.00014558,2]
[323645700,1714146731100,-603.07,0.00014558,2]
[323645701,1714146731109,-500.0,0.00014558,2]
[323645702,1714146731119,-1301.29,0.00014558,2]
[323645703,1714146731128,-500.0,0.00014558,2]
[323645704,1714146731137,-1375.84,0.00014558,2]
[323645705,1714146731147,-678.19,0.00014558,2]
[323645706,1714146731158,-500.0,0.00014558,2]
[323645707,1714146731167,-724.11,0.00014558,2]
[323645708,1714146731176,-594.9,0.00014558,2]
[323645709,1714146731186,-616.05,0.00014558,2]
[323645710,1714146731195,-500.0,0.00014558,2]
[323645711,1714146731205,-1741.91,0.00014558,2]
[323645712,1714146731214,-500.0,0.00014558,2]
[323645713,1714146731223,-1642.19,0.00014558,2]
[323645714,1714146731233,-645.35,0.00014558,2]
[323645715,1714146731242,-877.55,0.00014558,2]
[323645716,1714146731252,-1878.46,0.00014558,2]
[323645717,1714146731261,-2626.11,0.00014558,2]
[323645718,1714146731271,-500.0,0.00014558,2]
[323645719,1714146731281,-800.34,0.00014558,2]
[323645720,1714146731290,-500.0,0.00014558,2]
[323645721,1714146731299,-2000.0,0.000146,4]
[323645722,1714146731309,-338.77,0.00014604,2]
[323645723,1714146731319,-152.0,0.00014646,11]
[323645724,1714146731328,-581.97,0.00014663,2]
[323645725,1714146731337,-524.75,0.00014663,2]
[323645726,1714146731346,-500.0,0.00014663,2]
[323645727,1714146731356,-500.0,0.00014663,2]
[323645728,1714146731365,-500.0,0.00014663,2]
[323645729,1714146731374,-500.0,0.00014663,2]
[323645730,1714146731383,-912.86,0.00014663,2]
[323645731,1714146731393,-500.0,0.00014663,2]
[323645732,1714146731402,-614.45,0.00014663,2]
[323645733,1714146731411,-831.87,0.00014663,2]
[323645734,1714146731420,-500.0,0.00014663,2]
[323645735,1714146731429,-500.0,0.00014663,2]
[323645736,1714146731439,-1074.39,0.00014663,2]
[323645737,1714146731448,-500.0,0.00014663,2]
[323645738,1714146731458,-564.33263748,0.00014663,2]
[323645739,1714146731468,-500.0,0.00014663,2]
[323645740,1714146731478,-532.82,0.00014663,2]
[323645741,1714146731491,-773.66,0.00014663,2]
[323645742,1714146731501,-838.97,0.00014663,2]
[323645743,1714146731512,-500.0,0.00014663,2]
[323645744,1714146731522,-671.04,0.00014663,2]
[323645745,1714146731531,-724.04,0.00014663,2]
[323645746,1714146731540,-500.0,0.00014663,2]
[323645747,1714146731550,-500.0,0.00014663,2]
[323645748,1714146731561,-659.6,0.00014663,2]
[323645749,1714146731571,-539.5327952,0.00014663,2]
[323645750,1714146731581,-543.48,0.00014663,2]
[323645751,1714146731590,-605.67,0.00014663,2]
[323645752,1714146731600,-804.0,0.00014663,2]
[323645753,1714146731609,-500.0,0.00014663,2]
[323645754,1714146731619,-512.65,0.00014663,2]
[323645755,1714146731628,-500.0,0.00014663,2]
[323645756,1714146731638,-500.0,0.00014663,2]
[323645757,1714146731648,-500.0,0.00014663,2]
[323645758,1714146731656,-733.06,0.00014663,2]
[323645759,1714146731666,-500.0,0.00014663,2]
[323645760,1714146731675,-500.0,0.00014663,2]
[323645761,1714146731684,-584.14,0.00014663,2]
[323645762,1714146731693,-500.0,0.00014663,2]
[323645763,1714146731702,-668.64,0.00014663,2]
[323645764,1714146731712,-535.33,0.00014663,2]
[323645765,1714146731722,-500.0,0.00014663,2]
[323645766,1714146731731,-165.86724494,0.00014663,2]
[323645767,1714146731740,-500.0,0.00014663,2]
[323645768,1714146731751,-213.12294824,0.00014663,2]
[323645769,1714146731760,-549.83,0.00014663,2]
[323645770,1714146731770,-500.0,0.00014663,2]
[323645771,1714146731779,-500.0,0.00014663,2]
[323645772,1714146731789,-500.0,0.00014663,2]
[323645773,1714146731799,-500.0,0.00014674,7]
[323645774,1714146731810,-985.73,0.00014674,7]
[323645775,1714146731819,-160.0,0.00014687,2]
[323645776,1714146731829,-2000.0,0.000147,2]
[323645777,1714146731838,-523.39855204,0.000147,2]
[323645778,1714146731848,-18022.75131266,0.000147,2]
[323645779,1714146731857,-408.4701111,0.000148,2]
[323645780,1714146731867,-152.0,0.00014812,12]
[323645781,1714146731876,-644.42,0.00014829,2]
[323645782,1714146731886,-500.0,0.0001483,2]
[323645783,1714146731895,-500.0,0.0001483,2]
[323645784,1714146731904,-500.0,0.0001483,2]
[323645785,1714146731914,-500.0,0.0001483,2]
[323645786,1714146731923,-500.0,0.0001483,2]
[323645787,1714146731932,-500.0,0.0001483,2]
[323645788,1714146731942,-500.0,0.0001483,2]
[323645789,1714146731951,-500.0,0.0001483,2]
[323645790,1714146731961,-12541.59,0.0001483,2]
[323645791,1714146731972,-3067.93,0.0001483,2]
[323645792,1714146731981,-532.8,0.0001483,2]
[323645793,1714146731990,-683.29,0.0001483,2]
[323645794,1714146732001,-1060.15,0.0001483,2]
[323645795,1714146732011,-4294.42,0.0001483,2]
[323645796,1714146732020,-500.0,0.0001483,2]
[323645797,1714146732030,-539.52,0.0001483,2]
[323645798,1714146732040,-500.0,0.0001483,2]
[323645799,1714146732049,-2839.5,0.0001483,2]
[323645800,1714146732059,-500.0,0.0001483,2]
[323645801,1714146732069,-594.61,0.0001483,2]
[323645802,1714146732078,-786.04,0.0001483,2]
[323645803,1714146732088,-500.0,0.0001483,2]
[323645804,1714146732098,-633.46,0.0001483,2]
[323645805,1714146732107,-2454.05,0.0001483,2]
[323645806,1714146732117,-556.65,0.0001483,2]
[323645807,1714146732126,-783.76,0.0001483,2]
[323645808,1714146732136,-603.38,0.0001483,2]
[323645809,1714146732145,-1769.72,0.0001483,2]
[323645810,1714146732155,-541.56,0.0001483,2]
[323645811,1714146732164,-2540.34,0.0001483,2]
[323645812,1714146732174,-591.93,0.0001483,2]
[323645813,1714146732184,-545.47,0.0001483,2]
[323645814,1714146732193,-500.0,0.0001483,2]
[323645815,1714146732203,-4729.62,0.0001483,2]
[323645816,1714146732212,-1995.34,0.0001483,2]
[323645817,1714146732221,-586.34,0.0001483,2]
[323645818,1714146732231,-500.0,0.0001483,2]
[323645819,1714146732240,-2124.66,0.0001483,2]
[323645820,1714146732252,-3161.41,0.0001483,2]
[323645821,1714146732261,-1952.38,0.0001483,2]
[323645822,1714146732271,-2807.16,0.0001483,2]
[323645823,1714146732280,-638.27,0.0001483,2]
[323645824,1714146732290,-3223.34,0.0001483,2]
[323645825,1714146732300,-680.69,0.0001483,2]
[323645826,1714146732309,-2296.89,0.0001483,2]
[323645827,1714146732319,-500.0,0.0001483,2]
[323645828,1714146732328,-500.0,0.0001483,2]
[323645829,1714146732337,-2368.71,0.0001483,2]
[323645830,1714146732347,-3149.73,0.0001483,2]
[323645831,1714146732357,-500.0,0.0001483,2]
[323645832,1714146732367,-7711.79,0.0001483,2]
[323645833,1714146732377,-712.4,0.0001483,2]
[323645834,1714146732386,-1361.6,0.0001483,2]
[323645835,1714146732396,-743.13,0.0001483,2]
[323645836,1714146732406,-2752.21,0.0001483,2]
[323645837,1714146732415,-1414.54,0.0001483,2]
[323645838,1714146732424,-3239.13,0.0001483,2]
[323645839,1714146732434,-770.5,0.0001483,2]
[323645840,1714146732443,-1163.36,0.0001483,2]
[323645841,1714146732454,-6880.92,0.0001483,2]
[323645842,1714146732464,-525.52,0.0001483,2]
[323645843,1714146732474,-2621.73,0.0001483,2]
[323645844,1714146732486,-500.0,0.0001483,2]
[323645845,1714146732498,-2133.22,0.0001483,2]
[323645846,1714146732508,-653.66,0.0001483,2]
[323645847,1714146732517,-1077.73,0.0001483,2]
[323645848,1714146732527,-580.16,0.0001483,2]
[323645849,1714146732536,-4821.94,0.0001483,2]
[323645850,1714146732546,-2598.62,0.0001483,2]
[323645851,1714146732557,-1060.82,0.0001483,2]
[323645852,1714146732566,-584.82,0.0001483,2]
[323645853,1714146732576,-1830.64,0.0001483,2]
[323645854,1714146732585,-500.0,0.0001483,2]
[323645855,1714146732595,-500.0,0.0001483,2]
[323645856,1714146732605,-1584.6,0.0001483,2]
[323645857,1714146732614,-1347.81,0.0001483,2]
[323645858,1714146732624,-500.0,0.0001483,2]
[323645859,1714146732634,-500.0,0.0001483,2]
[323645860,1714146732644,-6325.77,0.0001483,2]
[323645861,1714146732653,-5879.51,0.0001483,2]
[323645862,1714146732663,-7205.06,0.0001483,2]
[323645863,1714146732672,-1130.16,0.0001483,2]
[323645864,1714146732681,-4293.14,0.0001483,2]
[323645865,1714146732691,-500.0,0.0001483,2]
[323645866,1714146732701,-4451.04,0.0001483,2]
[323645867,1714146732711,-813.86,0.0001483,2]
[323645868,1714146732721,-500.0,0.0001483,2]
[323645869,1714146732730,-500.0,0.00014831,2]
[323645870,1714146732739,-500.0,0.00014831,2]
[323645871,1714146732749,-586.06,0.00014831,2]
[323645872,1714146732758,-551.67,0.00014831,2]
[323645873,1714146732767,-500.0,0.00014831,2]
[323645874,1714146732777,-536.41,0.00014831,2]
[323645875,1714146732786,-500.0,0.00014831,2]
[323645876,1714146732795,-500.02,0.00014831,2]
[323645877,1714146732805,-890.43,0.00014831,2]
[323645878,1714146732814,-899.93,0.00014831,2]
[323645879,1714146732823,-500.0,0.00014831,2]
[323645880,1714146732833,-374.42857133,0.00014831,2]
[323645881,1714146732842,-740.2,0.00014831,2]
[323645882,1714146732851,-669.41,0.00014831,2]
[323645883,1714146732860,-714.54,0.00014831,2]
[323645884,1714146732870,-703.44,0.00014831,2]
[323645885,1714146732880,-500.0,0.00014831,2]
[323645886,1714146732889,-1007.49,0.00014831,2]
[323645887,1714146732899,-673.51,0.00014831,2]
[323645888,1714146732908,-500.0,0.00014831,2]
[323645889,1714146732917,-816.79,0.00014831,2]
[323645890,1714146732926,-518.11834214,0.00014831,2]
[323645891,1714146732935,-787.38,0.00014831,2]
[323645892,1714146732944,-500.0,0.00014831,2]
[323645893,1714146732954,-976.83,0.00014831,2]
[323645894,1714146732963,-1809.25,0.00014831,2]
[323645895,1714146732973,-2201.55,0.00014831,2]
[323645896,1714146732982,-500.0,0.00014831,2]
[323645897,1714146732991,-2475.02,0.00014831,2]
[323645898,1714146733002,-1021.24,0.00014831,2]
[323645899,1714146733012,-906.43,0.00014831,2]
[323645900,1714146733022,-500.0,0.00014831,2]
[323645901,1714146733031,-500.0,0.00014831,2]
[323645902,1714146733041,-1734.07,0.00014831,2]
[323645903,1714146733051,-1082.39,0.00014831,2]
[323645904,1714146733061,-507.5,0.00014831,2]
[323645905,1714146733071,-500.0,0.00014831,2]
[323645906,1714146733080,-500.0,0.00014831,2]
[323645907,1714146733090,-1366.4,0.00014831,2]
[323645908,1714146733099,-500.0,0.00014831,2]
[323645909,1714146733108,-1005.72,0.00014831,2]
[323645910,1714146733117,-500.0,0.00014831,2]
[323645911,1714146733128,-577.22754468,0.00014831,2]
[323645912,1714146733137,-1013.72,0.00014831,2]
[323645913,1714146733147,-988.03,0.00014831,2]
[323645914,1714146733156,-951.02,0.00014831,2]
[323645915,1714146733166,-882.88,0.00014831,2]
[323645916,1714146733175,-513.26,0.00014831,2]
[323645917,1714146733185,-1725.66,0.00014831,2]
[323645918,1714146733194,-500.0,0.00014831,2]
[323645919,1714146733204,-1527.71,0.00014831,2]
[323645920,1714146733214,-682.76,0.00014831,2]
[323645921,1714146733223,-522.14,0.00014831,2]
[323645922,1714146733232,-1626.54,0.00014831,2]
[323645923,1714146733242,-511.7,0.00014831,2]
[323645924,1714146733251,-500.0,0.00014831,2]
[323645925,1714146733261,-500.0,0.00014831,2]
[323645926,1714146733271,-500.0,0.00014831,2]
[323645927,1714146733281,-387.06,0.00014831,2]
[323645928,1714146733291,-1328.17,0.00014831,2]
[323645929,1714146733300,-500.0,0.00014831,2]
[323645930,1714146733310,-551.92,0.00014831,2]
[323645931,1714146733320,-500.0,0.00014831,2]
[323645932,1714146733330,-581.23,0.00014831,2]
[323645933,1714146733339,-2126.22,0.00014831,2]
[323645934,1714146733349,-500.0,0.00014831,2]
[323645935,1714146733359,-1925.01,0.00014831,2]
[323645936,1714146733369,-500.0,0.00014831,2]
[323645937,1714146733379,-544.69,0.00014831,2]
[323645938,1714146733389,-500.0,0.00014831,2]
[323645939,1714146733399,-1631.66,0.00014831,2]
[323645940,1714146733408,-500.0,0.00014831,2]
[323645941,1714146733418,-500.0,0.00014831,2]
[323645942,1714146733428,-1881.98,0.00014831,2]
[323645943,1714146733439,-500.0,0.00014831,2]
[323645944,1714146733449,-597.71,0.00014831,2]
[323645945,1714146733458,-2029.94,0.00014831,2]
[323645946,1714146733468,-1848.32,0.00014831,2]
[323645947,1714146733479,-1370.68,0.00014831,2]
[323645948,1714146733492,-1912.0,0.00014831,2]
[323645949,1714146733502,-661.25,0.00014831,2]
[323645950,1714146733512,-919.44,0.00014831,2]
[323645951,1714146733522,-638.29,0.00014831,2]
[323645952,1714146733532,-1171.2,0.00014831,2]
[323645953,1714146733541,-5559.23,0.00014831,2]
[323645954,1714146733551,-2143.51,0.00014831,2]
[323645955,1714146733562,-7686.77,0.00014831,2]
[323645956,1714146733572,-500.0,0.00014831,2]
[323645957,1714146733780,-500.0,0.00014831,2]
[323645958,1714146733797,-2569.43,0.00014831,2]
[323645959,1714146733806,-2739.23,0.00014831,2]
[323645960,1714146733816,-500.0,0.00014831,2]
[323645961,1714146733825,-1792.37,0.00014831,2]
[323645962,1714146733834,-1653.79,0.00014831,2]
[323645963,1714146733843,-625.93,0.00014831,2]
[323645964,1714146733853,-500.0,0.00014831,2]
[323645965,1714146733863,-500.0,0.00014831,2]
[323645966,1714146733873,-1471.8,0.00014831,2]
[323645967,1714146733883,-1070.1,0.00014831,2]
[323645968,1714146733892,-4037.45,0.00014831,2]
[323645969,1714146733902,-2650.97,0.00014831,2]
[323645970,1714146733911,-598.19,0.00014831,2]
[323645971,1714146733922,-500.0,0.00014831,2]
[323645972,1714146733931,-4448.95,0.00014831,2]
[323645973,1714146733940,-2695.07,0.00014831,2]
[323645974,1714146733950,-8545.82,0.00014831,2]
[323645975,1714146733960,-591.25,0.00014831,2]
[323645976,1714146733970,-2042.61,0.00014831,2]
[323645977,1714146733980,-693.98,0.00014831,2]
[323645978,1714146733990,-3854.6,0.00014831,2]
[323645979,1714146734001,-1203.03,0.00014831,2]
[323645980,1714146734010,-1971.4,0.00014831,2]
[323645981,1714146734020,-500.0,0.00014831,2]
[323645982,1714146734030,-540.52,0.00014831,2]
[323645983,1714146734040,-1968.53,0.00014831,2]
[323645984,1714146734050,-500.0,0.00014831,2]
[323645985,1714146734060,-1494.75,0.00014831,2]
[323645986,1714146734070,-3141.48,0.00014831,2]
[323645987,1714146734080,-2509.36,0.00014831,2]
[323645988,1714146734090,-500.92,0.00014831,2]
[323645989,1714146734100,-13276.39,0.00014831,2]
[323645990,1714146734110,-8273.37,0.00014831,2]
[323645991,1714146734120,-742.66,0.00014831,2]
[323645992,1714146734129,-1606.25,0.00014831,2]
[323645993,1714146734140,-1129.91,0.00014831,2]
[323645994,1714146734150,-500.0,0.00014831,2]
[323645995,1714146734159,-500.0,0.00014831,2]
[323645996,1714146734169,-1918.48,0.00014831,2]
[323645997,1714146734179,-2088.24,0.00014831,2]
[323645998,1714146734189,-500.0,0.00014831,2]
[323645999,1714146734199,-1027.75,0.00014831,2]
[323646000,1714146734209,-234.96,0.00014831,2]
[323646001,1714146734219,-1818.45,0.00014831,2]
[323646002,1714146734229,-5084.52,0.00014831,2]
[323646003,1714146734239,-1698.98,0.00014831,2]
[323646004,1714146734251,-2638.15,0.00014831,2]
[323646005,1714146734260,-1991.01,0.00014831,2]
[323646006,1714146734270,-500.0,0.00014831,2]
[323646007,1714146734279,-4070.98,0.00014831,2]
[323646008,1714146734289,-2076.98,0.00014831,2]
[323646009,1714146734299,-1015.78,0.00014831,2]
[323646010,1714146734309,-1017.72,0.00014831,2]
[323646011,1714146734319,-644.82,0.00014831,2]
[323646012,1714146734328,-500.0,0.00014831,2]
[323646013,1714146734338,-5841.05,0.00014831,2]
[323646014,1714146734348,-700.9,0.00014831,2]
[323646015,1714146734359,-2676.49,0.00014831,2]
[323646016,1714146734368,-743.73,0.00014831,2]
[323646017,1714146734378,-1119.16,0.00014831,2]
[323646018,1714146734388,-500.0,0.00014831,2]
[323646019,1714146734398,-3263.92,0.00014831,2]
[323646020,1714146734408,-739.69,0.00014831,2]
[323646021,1714146734418,-1345.69,0.00014831,2]
[323646022,1714146734427,-2402.81,0.00014831,2]
[323646023,1714146734437,-500.0,0.00014832,2]
[323646024,1714146734447,-558.17,0.00014832,2]
[323646025,1714146734457,-491.54783927,0.00014832,2]
[323646026,1714146734467,-500.0,0.00014832,2]
[323646027,1714146734478,-500.0,0.00014832,2]
[323646028,1714146734492,-577.08,0.00014832,2]
[323646029,1714146734502,-500.0,0.00014832,2]
[323646030,1714146734513,-500.0,0.00014832,2]
[323646031,1714146734523,-202.18741838,0.00014832,2]
[323646032,1714146734533,-500.0,0.00014832,2]
[323646033,1714146734543,-500.0,0.00014832,2]
[323646034,1714146734552,-703.76,0.00014832,2]
[323646035,1714146734562,-723.08,0.00014832,2]
[323646036,1714146734572,-571.51,0.00014832,2]
[323646037,1714146734581,-500.0,0.00014832,2]
[323646038,1714146734591,-1700.69,0.00014832,2]
[323646039,1714146734601,-500.0,0.00014832,2]
[323646040,1714146734610,-597.04,0.00014832,2]
[323646041,1714146734620,-477.78204854,0.00014832,2]
[323646042,1714146734630,-500.0,0.00014832,2]
[323646043,1714146734640,-980.11,0.00014832,2]
[323646044,1714146734650,-654.78,0.00014832,2]
[323646045,1714146734659,-665.45,0.00014832,2]
[323646046,1714146734669,-500.0,0.00014832,2]
[323646047,1714146734678,-593.50270235,0.00014832,2]
[323646048,1714146734688,-500.0,0.00014832,2]
[323646049,1714146734698,-500.0,0.00014832,2]
[323646050,1714146734707,-507.24,0.00014832,2]
[323646051,1714146734717,-500.0,0.00014832,2]
[323646052,1714146734727,-178.60959515,0.00014832,2]
[323646053,1714146734736,-500.0,0.00014832,2]
[323646054,1714146734746,-500.0,0.00014832,2]
[323646055,1714146734757,-817.8,0.00014832,2]
[323646056,1714146734766,-502.02,0.00014832,2]
[323646057,1714146734776,-500.0,0.00014832,2]
[323646058,1714146734787,-530.95,0.00014832,2]
[323646059,1714146734796,-452.29,0.00014832,2]
[323646060,1714146734806,-500.0,0.00014832,2]
[323646061,1714146734816,-542.25,0.00014832,2]
[323646062,1714146734826,-385.6,0.00014832,2]
[323646063,1714146734835,-597.96,0.00014832,2]
[323646064,1714146734845,-1358.88,0.00014832,2]
[323646065,1714146734855,-619.11,0.00014832,2]
[323646066,1714146734865,-1059.13,0.00014832,2]
[323646067,1714146734875,-500.0,0.00014832,2]
[323646068,1714146734886,-621.09,0.00014832,2]
[323646069,1714146734895,-781.34,0.00014832,2]
[323646070,1714146734905,-500.0,0.00014832,2]
[323646071,1714146734915,-603.94,0.00014832,2]
[323646072,1714146734925,-500.0,0.00014832,2]
[323646073,1714146734935,-2203.32,0.00014832,2]
[323646074,1714146734945,-741.55,0.00014832,2]
[323646075,1714146734954,-500.0,0.00014832,2]
[323646076,1714146734963,-707.05,0.00014832,2]
[323646077,1714146734974,-500.0,0.00014832,2]
[323646078,1714146734983,-1197.27,0.00014832,2]
[323646079,1714146734993,-525.11,0.00014832,2]
[323646080,1714146735005,-1151.01,0.00014832,2]
[323646081,1714146735014,-1089.37,0.00014832,2]
[323646082,1714146735024,-500.0,0.00014832,2]
[323646083,1714146735034,-500.0,0.00014832,2]
[323646084,1714146735044,-535.73,0.00014832,2]
[323646085,1714146735053,-1314.57,0.00014832,2]
[323646086,1714146735063,-500.0,0.00014832,2]
[323646087,1714146735073,-500.0,0.00014832,2]
[323646088,1714146735083,-1247.81,0.00014832,2]
[323646089,1714146735093,-731.33,0.00014832,2]
[323646090,1714146735104,-609.72,0.00014832,2]
[323646091,1714146735114,-713.5,0.00014832,2]
[323646092,1714146735124,-577.85,0.00014832,2]
[323646093,1714146735133,-500.0,0.00014832,2]
[323646094,1714146735144,-1867.18,0.00014832,2]
[323646095,1714146735154,-500.0,0.00014832,2]
[323646096,1714146735163,-1355.9,0.00014832,2]
[323646097,1714146735173,-638.8,0.00014832,2]
[323646098,1714146735184,-603.07,0.00014832,2]
[323646099,1714146735193,-500.0,0.00014832,2]
[323646100,1714146735234,-1301.29,0.00014832,2]
[323646101,1714146735244,-362.26,0.00014832,2]
[323646102,1714146735257,-1375.84,0.00014832,2]
[323646103,1714146735267,-678.19,0.00014832,2]
[323646104,1714146735279,-500.0,0.00014832,2]
[323646105,1714146735289,-724.11,0.00014832,2]
[323646106,1714146735299,-594.9,0.00014832,2]
[323646107,1714146735310,-616.05,0.00014832,2]
[323646108,1714146735320,-500.0,0.00014832,2]
[323646109,1714146735331,-1741.91,0.00014832,2]
[323646110,1714146735343,-636.88,0.00014832,2]
[323646111,1714146735353,-1642.19,0.00014832,2]
[323646112,1714146735364,-645.35,0.00014832,2]
[323646113,1714146735374,-877.55,0.00014832,2]
[323646114,1714146735385,-1878.46,0.00014832,2]
[323646115,1714146735395,-2626.11,0.00014832,2]
[323646116,1714146735405,-210.66223605,0.00014832,2]
[323646117,1714146735416,-800.34,0.00014832,2]
[323646118,1714146735428,-500.0,0.00014832,2]
[323646119,1714146735438,-484.67865044,0.000149,2]
[323646120,1714146735447,-12870.34976915,0.000149,2]
[323646121,1714146735457,-2000.0,0.000149,4]
[323646122,1714146735467,-524.75,0.00014937,2]
[323646123,1714146735477,-500.0,0.00014937,2]
[323646124,1714146735491,-500.0,0.00014937,2]
[323646125,1714146735504,-500.0,0.00014937,2]
[323646126,1714146735514,-500.0,0.00014937,2]